Cogmind - Beta 15 @@@ ROGUE MODE // 2025.07.25 @ 18:10:52 Player: Inverisimilidude Result: Destroyed by as-79870 with Assembled Rifle Performance ------------- Evolutions (0) 0 Regions Visited (3) 600 Robots Destroyed (6) 30 Value Destroyed (240) 240 Prototype IDs (23) 460 Alien Tech Used (0) 0 Bonus (360) 360 TOTAL SCORE: 1690 Bonus ------- Follower Combat Kills 60 Aligned with FarCom 300 Cogmind --------- Core Integrity 0/250 Matter 275/300 Energy 151/250 System Corruption 0% Temperature Cool (0) Movement Walking (120) Location -10/Exiles Parts ------- > --- POWER (1) -------- Ion Engine > --- PROPULSION (2) --- Aluminum Leg Carbon-fiber Leg > --- UTILITY (2) ------ Medium Storage Unit > --- WEAPON (2) ------- (None) > --- INVENTORY (10) --- Aluminum Leg Aluminum Leg Improved Heat Sink Large Storage Unit Structural Scanner Small Laser Field Lobotomy Kit (3) Mining Laser Peak State ------------ > --- POWER ------------ Light Ion Engine > --- PROPULSION ------- Aluminum Leg Aluminum Leg > --- UTILITY ---------- Medium Storage Unit Sensor Array > --- WEAPON ----------- Light Assault Rifle Field Lobotomy Kit > --- INVENTORY -------- Ion Engine Aluminum Leg Aluminum Leg Carbon-fiber Leg Improved Heat Sink Large Storage Unit Structural Scanner Small Laser Beam Cannon Mining Laser [Rating: 17] Favorites ----------- Power Ion Engine Engine Ion Engine Propulsion Aluminum Leg Leg Aluminum Leg Wheel Compact Wheel Utility Medium Storage Unit Device Sensor Array Storage Medium Storage Unit Weapon Light Assault Rifle Energy Cannon Beam Cannon Ballistic Gun Light Assault Rifle Special Weapon Field Lobotomy Kit Build | -11 -10 -10 -10 ------- Run | Yrd Mat Min Exi Slots Evolved . | . . . . Power . | . . . . Propulsion . | . . . . Utility . | . . . . Weapon . | . . . . Parts Attached 16 | 6 2 4 4 Power 3 | 1 . . 2 Engine 3 | 1 . . 2 Core . | . . . . Reactor . | . . . . Propulsion 5 | 2 . 2 1 Treads . | . . . . Leg 3 | . . 2 1 Wheel 2 | 2 . . . Hover . | . . . . Flight . | . . . . Utility 4 | 1 2 1 . Device 2 | . 1 1 . Storage 2 | 1 1 . . Processor . | . . . . Hackware . | . . . . Protection . | . . . . Artifact . | . . . . Weapon 4 | 2 . 1 1 Energy Gun . | . . . . Energy Cannon 1 | . . 1 . Ballistic Gun 2 | 2 . . . Ballistic Cannon . | . . . . Launcher . | . . . . Special Weapon 1 | . . . 1 Impact Weapon . | . . . . Slashing Weapon . | . . . . Piercing Weapon . | . . . . Special Melee Weapon . | . . . . Unidentified Prototypes . | . . . . Parts Lost 7 | . . 2 5 Power 1 | . . . 1 Propulsion 2 | . . 1 1 Utility 1 | . . . 1 Weapon 3 | . . 1 2 Highest Loss Streak 5 | . . 1 5 To Critical Strikes 1 | . . . 1 Average Backups 9 | 2 5 9 9 Power 1 | . 1 1 1 Propulsion 2 | 1 2 2 2 Utility 2 | . 1 2 3 Weapon 1 | . 1 2 2 Tool/Special . | . . . . Unused Backups 9 | . . 3 6 Power . | . . . . Propulsion 5 | . . 3 2 Utility 2 | . . . 2 Weapon 2 | . . . 2 Tool/Special . | . . . . Average Slot Usage (%) 98 | . 94 99 99 Engine 14 | . 14 14 14 Leg 23 | . . 25 28 Wheel 4 | . 28 1 . Device 13 | . 9 14 14 Storage 14 | . 14 14 14 Energy Cannon 10 | . . 10 13 Ballistic Gun 17 | . 28 17 13 Peak Build Rating 17 | 6 7 8 17 Average Rating 7 | 4 6 7 8 On Entrance 5 | . 6 7 8 Naked Turns . | . . . . Heaviest Build 20 | 13 19 20 20 Greatest Support 26 | 26 26 20 25 Greatest Overweight (x) 1 | . . 1 1 Average Overweight (x) . | . . . . Largest Inventory Capacity 10 | 8 10 10 10 Average Capacity 9 | 7 9 10 10 Most Carried 10 | 4 7 10 10 Average Carried 9 | 2 5 9 9 Final Capacity 10 | 8 10 10 10 Final Carried 10 | 4 7 10 8 Class Distribution -------------------- 100% | Mutant Dominant Class ---------------- Mutant | -10/Materials Mutant | -10/Mines Mutant | -10/Exiles Resources | -11 -10 -10 -10 ----------- Run | Yrd Mat Min Exi Matter Collected 370 | 174 . 196 . Remotely . | . . . . Salvage Created 271 | . . 271 . Parts 15 | . . 15 . Haulers Intercepted . | . . . . Recyclers Shooed . | . . . . Parts Field Recycled . | . . . . Retrieved Matter . | . . . . Parts Self-Destructed . | . . . . Prevented . | . . . . Kills | -11 -10 -10 -10 ------- Run | Yrd Mat Min Exi Combat Hostiles Destroyed 6 | . . 6 . Guns 6 | . . 6 . Classes Destroyed 1 | . . 1 . Grunt 6 | . . 6 . Best Kill Streak 2 | . . 2 . Combat Bots Only 2 | . . 2 . Max Kills in Single Turn 1 | . . 1 . Gunslinging . | . . . . Exploded . | . . . . Melee . | . . . . Uniques/NPCs Destroyed . | . . . . Combat | -11 -10 -10 -10 -------- Run | Yrd Mat Min Exi Hostile Shots Fired 82 | . . 43 39 Missed 20 | . . 7 13 Hits 62 | . . 36 26 Melee 5 | . . . 5 Projectile 57 | . . 36 21 Critical Strikes 8 | . . . 8 Damage Taken 1027 | . . 453 574 Core 254 | . . 122 132 Absorbed by Shields . | . . . . Core Remaining (%) 100 | 100 . . . Volleys Fired 23 | . . 21 2 Largest 2 | . . 2 1 Hottest 80 | . . 80 . Shots Fired 44 | . . 42 2 Gun 34 | . . 34 . Cannon 8 | . . 8 . Launcher . | . . . . Special 2 | . . . 2 Kinetic 34 | . . 34 . Thermal 8 | . . 8 . Explosive . | . . . . Electromagnetic . | . . . . Robot Hit Streak 6 | . . 6 3 Robot Miss Streak 2 | . . 2 . Penetration Max . | . . . . Secondary Targets 1 | . . 1 . Max Gunslinging Chain 1 | . . 1 . Shots Hit Robots 31 | . . 29 2 Core Hits 15 | . . 15 . Critical Kills . | . . . . Critical Parts Destroyed 1 | . . 1 . Critical Strikes 1 | . . 1 . Destroy 1 | . . 1 . Melee Attacks . | . . . . Impact . | . . . . Slashing . | . . . . Piercing . | . . . . Sneak Attacks . | . . . . Combat Hostiles . | . . . . Follow-up Attacks . | . . . . Damage Inflicted 341 | . . 341 . Guns 270 | . . 270 . Cannons 71 | . . 71 . Explosions . | . . . . Melee . | . . . . Ramming . | . . . . Kinetic 270 | . . 270 . Thermal 71 | . . 71 . Explosive . | . . . . Electromagnetic . | . . . . Impact . | . . . . Slashing . | . . . . Piercing . | . . . . Highest Corruption . | . . . . Average Corruption . | . . . . Corruption Purged . | . . . . Corruption Blocked . | . . . . Overload Shots . | . . . . Overflow Damage . | . . . . Projectiles . | . . . . Explosions . | . . . . Melee . | . . . . Knockbacks . | . . . . Impact . | . . . . Kinetic . | . . . . Secondary . | . . . . Self-Inflicted Damage . | . . . . Shots . | . . . . Rammed . | . . . . Targets Rammed . | . . . . Kicked . | . . . . Crushed . | . . . . Highest Temperature 176 | . . 176 . Average Temperature 51 | . . 51 . Received Heat Transfer 252 | . . 252 . Siege Activations . | . . . . Martial Activations . | . . . . Shielding Activations . | . . . . Robots Disrupted . | . . . . Combat Hostiles . | . . . . Robots Corrupted . | . . . . Combat Hostiles . | . . . . Parts Fried . | . . . . Impact Corruptions . | . . . . Robots Melted . | . . . . Combat Hostiles . | . . . . Parts Melted . | . . . . Heat Transferred 148 | . . 148 . Parts Sabotaged . | . . . . Parts Stolen . | . . . . Parts Stripped . | . . . . Power Chain Reactions . | . . . . Alert | -11 -10 -10 -10 ------- Run | Yrd Mat Min Exi Maximum Alert Level . | . . . . Low Security (%) 100 | 100 100 100 . Level 1 . | . . . . Level 2 . | . . . . Level 3 . | . . . . Level 4 . | . . . . Level 5 . | . . . . High Security . | . . . . Max Security . | . . . . Peak Influence 68 | . 13 68 . Initial . | . . . . Average 14 | . . 22 . Influence Increases 226 | . 13 213 . Destroy 0b10 Robot/C 160 | . . 160 . Destroy 0b10 Robot/NC 5 | . . 5 . Destroy Leader 30 | . . 30 . Allied During Kill 3 | . . 3 . Successful Hack 13 | . 13 . . Disable Machine 15 | . . 15 . Influence Decreases 226 | . 13 213 . Time Decay 201 | . 13 188 . Lost Part 5 | . . 5 . Lost Ally 20 | . . 20 . Squads Dispatched 2 | . 1 1 . Investigation 1 | . 1 . . Extermination . | . . . . Reinforcement . | . . . . Assault 1 | . . 1 . Garrison . | . . . . Intercept . | . . . . Searches Triggered . | . . . . Construction Impeded . | . . . . Haulers Reinforced . | . . . . Active Scanning Responses . | . . . . Cargo Convoy Interrupts . | . . . . Stealth | -11 -10 -10 -10 --------- Run | Yrd Mat Min Exi Distress Signals . | . . . . Communications Jammed . | . . . . Distress Signals . | . . . . Times Spotted 17 | . . 8 9 Peak Tracking Total 10 | . . 3 10 Tactical Retreats 1 | . . . 1 Traps | -11 -10 -10 -10 ------- Run | Yrd Mat Min Exi Traps Triggered 1 | . 1 . . Indirectly . | . . . . Trap Hack Attempts . | . . . . Triggered . | . . . . Disarmed . | . . . . Reprogrammed . | . . . . Reused . | . . . . Traps Extracted . | . . . . Installed . | . . . . Triggered . | . . . . Machines | -11 -10 -10 -10 ---------- Run | Yrd Mat Min Exi Machines Disabled 1 | . . 1 . Max in Single Turn 1 | . . 1 . Machines Repaired . | . . . . Machines Dismantled . | . . . . Machines Sabotaged . | . . . . Overloaded Fab Kills . | . . . . Hacking | -11 -10 -10 -10 --------- Run | Yrd Mat Min Exi Machines Accessed 3 | . 2 . 1 Terminals 2 | . 2 . . Fabricators . | . . . . Repair Stations . | . . . . Recycling Units . | . . . . Scanalyzers . | . . . . Garrison Access . | . . . . Total Hacks 7 | . 6 . 1 Successful 5 | . 4 . 1 Failed 2 | . 2 . . Catastrophic 1 | . 1 . . Database Lockouts . | . . . . Manual 8 | . 6 . 2 Terminals 6 | . 6 . . Fabricators . | . . . . Repair Stations . | . . . . Recycling Units . | . . . . Scanalyzers . | . . . . Garrison Access . | . . . . Terminal Hacks 3 | . 2 . 1 Branch Access Points 1 | . 1 . . Emergency Access Points 1 | . 1 . . Proto ID Catalog 1 | . . . 1 Fabricator Hacks . | . . . . Repair Station Hacks . | . . . . Recycling Unit Hacks . | . . . . Scanalyzer . | . . . . Garrison Access Hacks . | . . . . Unauthorized Hacks 2 | . 2 . . Terminals 2 | . 2 . . Botnet 2 | . 2 . . Fabricators . | . . . . Repair Stations . | . . . . Recycling Units . | . . . . Scanalyzers . | . . . . Garrison Access . | . . . . Data Cores Recovered . | . . . . Used . | . . . . Hacking Detections . | . . . . Full Trace Events . | . . . . Feedback Events . | . . . . Feedback Blocked . | . . . . Robot Schematics Acquired . | . . . . Robots Built . | . . . . Authchips . | . . . . Time . | . . . . Total Robot Build Rating . | . . . . Part Schematics Acquired . | . . . . Parts Built . | . . . . Authchips . | . . . . Time . | . . . . Total Part Build Rating . | . . . . Parts Repaired . | . . . . Time . | . . . . Parts Recycled . | . . . . Recycled Matter . | . . . . Retrieved Matter . | . . . . Retrieved Components . | . . . . Parts Scanalyzed . | . . . . Part Schematics Acquired . | . . . . Parts Damaged . | . . . . Bothacking | -11 -10 -10 -10 ------------ Run | Yrd Mat Min Exi Used RIF Installer . | . . . . Robots Hacked . | . . . . Non-combat . | . . . . Combat . | . . . . Robot Hacks Applied . | . . . . Relay Couplers Released . | . . . . Fabnet Peak Effective % . | . . . . Robots Rewired . | . . . . Allies Hacked . | . . . . Hacks Repelled . | . . . . Allies | -11 -10 -10 -10 -------- Run | Yrd Mat Min Exi Total Allies 1 | . . 1 . Largest Group 1 | . . 1 . Highest-Rated Group 31 | . . 31 . Highest-Rated Ally 31 | . . 31 . Total Orders . | . . . . Ally Attacks 5 | . . 5 . Total Damage 103 | . . 103 . Kills 3 | . . 3 . Allies Corrupted . | . . . . Allies Melted . | . . . . Intel | -11 -10 -10 -10 ------- Run | Yrd Mat Min Exi Active Infowar (turns) 1581 | . 154 563 864 Sensors 1317 | . . 453 864 Structural 264 | . 154 110 . Robot Analysis Total . | . . . . Derelict Logs Recovered 1 | . . 1 . Drone Launches . | . . . . Drone Recoveries . | . . . . Exploration | -11 -10 -10 -10 ------------- Run | Yrd Mat Min Exi Turns Passed 1701 | 54 220 563 864 Spaces Moved 1398 | 49 238 404 707 Core 6 | 6 . . . Treads . | . . . . Legs 1104 | . . 397 707 Wheels 288 | 43 238 7 . Hover . | . . . . Flight . | . . . . Fastest Speed 50 | 50 90 115 120 Average Speed 113 | 85 90 120 120 Slowest Speed 190 | 100 90 190 190 Overloaded Moves . | . . . . Propulsion Burnouts . | . . . . Robots Hopped . | . . . . Potential Cave-ins . | . . . . Cave-ins Triggered . | . . . . Exploration Rate (%) 43 | 4 35 42 92 Regions Visited 3 Branch Regions 2 Pre-discovered Areas . | . . . . Known Exits Taken 1 | . 1 . . Unknown Exits Taken 2 | 1 . 1 . Scrap Searched 1 | . . 1 . Spaces Dug . | . . . . Terrain Destroyed . | . . . . Melee . | . . . . Projectile . | . . . . AOE . | . . . . Terrain Rammed . | . . . . Walls Destroyed . | . . . . Machines Disabled . | . . . . Actions | -11 -10 -10 -10 --------- Run | Yrd Mat Min Exi Total 1464 | 58 243 445 718 Wait 6 | . . 6 . Move 1395 | 48 237 403 707 Hop . | . . . . Pick Up 16 | 4 3 7 2 Fast Attach 10 | 6 2 2 . Attach 4 | . . 1 3 Detach . | . . . . Swap 3 | . . 1 2 Drop 7 | . 1 4 2 Fire 23 | . . 21 2 Melee . | . . . . Ram . | . . . . Kick . | . . . . Crush . | . . . . Escape Stasis . | . . . . Rewire . | . . . . Trap . | . . . . Miscellaneous . | . . . . Route ------- -11/Scrapyard -10/Materials (discovered 3 exits: [*Mat] / *Min x2) -10/Mines (discovered 2 exits: [*Mat] / *Exi) -10/Exiles (discovered 2 exits: [*Min x2]) History --------- Turn | Location | Event 22 | -11/Scrapyard | Discovered new exit (range 16) 55 | -11/Scrapyard | Entered Materials 124 | -10/Materials | Discovered new exit (range 16) 130 | -10/Materials | Identified exit to Mines 160 | -10/Materials | Discovered new exit (range 8) 275 | -10/Materials | Entered Mines 337 | -10/Mines | Build established: Mutant 377 | -10/Mines | Discovered new exit (range 8) 486 | -10/Mines | Met a Derelict testing a Signal Generator 594 | -10/Mines | Learned Materials garrison access intel 832 | -10/Mines | Deemed a non-threat by the Exiles lab entrance 834 | -10/Mines | Discovered new exit (range 5) 838 | -10/Mines | Entered Exiles 858 | -10/Exiles | Discovered new exit (range 15) 894 | -10/Exiles | Met 8R-AWN 913 | -10/Exiles | Met EX-HEX 991 | -10/Exiles | Met EX-DEC 1015 | -10/Exiles | Visited The Gauntlet 1197 | -10/Exiles | Met EX-BIN 1219 | -10/Exiles | Aligned with FarCom system 1220 | -10/Exiles | Given EX-Vault access code 1255 | -10/Exiles | Opened EX-Vault 1265 | -10/Exiles | Found Field Lobotomy Kit 1290 | -10/Exiles | Warned to stay clear of 0b10 Research branches 1540 | -10/Exiles | Discovered new exit (range 14) 1664 | -10/Exiles | Attacked by the Exiles 1684 | -10/Exiles | Core integrity fell below 50% 1691 | -10/Exiles | Core integrity fell below 20% 1702 | -10/Exiles | Destroyed by as-79870 with Assembled Rifle Last Messages --------------- 01678_ Machine disabled. 01679_ HV Slug penetrates as-86655. 01679_ as-86655 suffers critical hit (Destroy). 01679_ as-86655 destroyed. 01679_ HV Slug penetrates Wall. 01679_ Penetrated by HV Slug. 01679_ Critical hit (Destroy). 01679_ Beam Cannon destroyed. 01683_ Rigged Nuclear Core explodes. 01683_ Lgt. Assault Rifle destroyed. 01685_ Aluminum Leg destroyed. 01687_ Penetrated by HV Slug. 01687_ HV Slug penetrates Wall. 01687_ Penetrated by HV Slug. 01687_ Lgt. Ion Engine destroyed. 01687_ HV Slug penetrates Wall. 01690_ HV Slug penetrates Earth. 01690_ Penetrated by HV Slug. 01690_ HV Slug penetrates Wall. 01702_ Sensor Array destroyed. Map ----- +----------------------------------------------------+ | ?????????????????????????????????????????????? | | ?????????????????????????????????????????????? | | ?????????????????????????????????????????????? | | ?????????????????????????????????????????????? | | ?????????????????????????????????????????????? | | ?????????????????????????????????????????????? | | ?????????????????????????????????????????????? | | ?????????????????????????????????????????????? | | ?????????????????????????????????????????????? | | ?????????????????????????????????????????????? | | ?????????????????????????????????????????????? | | ?????????????????????????????????????????????? | | ?????????????????????????????????????????????? | | ?????????????????????????????????????????????? | | ?????????????????????????????????????????????? | | ?????????????????????????????????????????????? | | ?????????????????????????????????????????????? | | ?????????????????????????????????????????????? | | ?????????????????????????????????????????????? | | ?????????????????????????????????????????????? | | ?????????????????????????????????????????????? | | ?????????????????????????####????????????????? | | ????????????????????????## #????????????????? | | ???????????????????????## #????????????????? | | ???????????????????????# < #????????????????? | | ???????????????????????# @ #????????????????? | | ???????????????????????# #????????????????? | | ??????????????????????## ##????????????????? | | ?????????????????????##aa ##????????????????? | | ?????????????????????# #????????????????? | | ?#####???????????????#a #????????????????? | | ##" #??????????????##a #????????????????? | | #" #?????????????## a # #????????????????? | | #" ##??????###???# ;##????????????????? | | ######## ### ###?????????????????? | | ##"""""""" #???????????????????? | | %# " ? ##???????????????????? | | ##???????????????????? | | #" #???????????????????? | | #### ##??????????????????? | | "#?#"""""##"# ###????????????????? | | ##?#########"### * ###??????????????? | | #??????????## ###### ##?????????????? | | ?????????????##????### #?????????????? | | ?????????????????????### #?????????????? | | ???????????????????????### #?????????????? | | ????????????????????????#" ##????????????? | | ????????????????????????#### ###??????????? | | ???????????????????????????# ##?????????? | | ???????????????????????????## ###???????? | +----------------------------------------------------+ Best States ------------- Heat Dissipation 25 Energy Generation 10 Energy Capacity 250 Matter Stores 300 Matter Capacity 300 Sight Range 16 Robot Scan Range 14 Terrain Scan Density 10 Evasion (%) 55 Item Schematics ----------------- None Robot Schematics ------------------ None Fabricated ------------ Nothing Repaired ---------- Nothing Alien Tech Used ----------------- None Achievements -------------- None Challenges ------------ None Game ------ Seed ArmorChainRailgun Manual? 0 Play Time 00:12:25 Cumulative 54.6 hours Start 2025.07.25 @ 17:59:28 End 2025.07.25 @ 18:10:52 Sessions 1 Manual Loads 0 Difficulty Rogue Special Mode None Game No. 74 Rogue 74 Adventurer 0 Explorer 0 Win Type - Total 0 Types 0/0/0/0/0/0/0/0/0/0 Lore% 41 Gallery% 32 Achievement% 33 Wizard Run 0 Options --------- Layout 1 ASCII 0 Keyboard 0 Movement Arrows Keybinds 0 Fullscreen 1 Font 24/Smallcaps Map View 50x35 Zoom Use 0% Tactical HUD 1 Map Filters NONE Filters NONE Steam 1 RUN: b5362556-168c-46a9-b9ee-d9568d3497c3